Cogmind - Beta 16 @@@ ROGUE MODE // 2025.12.26 @ 00:12:46 Player: parasect Result: Destroyed by S-43 Plague with Heavy Machine Gun Performance ------------- Evolutions (9) 4500 Regions Visited (19) 3800 Robots Destroyed (144) 720 Value Destroyed (3736) 3736 Prototype IDs (12) 240 Alien Tech Used (2) 400 Bonus (9218) 9218 TOTAL SCORE: 22614 Bonus ------- High Alert Combat Kills 75 Follower Combat Kills 1984 Entered DSFs 1000 Network Hubs Disabled 400 Met Zhirov 300 Built Enhanced Grunts 300 Read Decrypted Archives 300 Used Core Reset Matrix 3000 Met Sigix 2000 Friendly Fire -141 Cogmind --------- Core Integrity 0/1600 Matter 275/300 Energy 99/100 System Corruption 6% Temperature Cool (0) Movement Core (50) Location -1/Access Parts ------- > --- POWER (2) -------- (None) > --- PROPULSION (6) --- Advanced Heavy Siege Treads Centrium Leg > --- UTILITY (15) ----- System Shield System Shield > --- WEAPON (2) ------- (None) > --- INVENTORY (5) ---- Quantum Reactor Cooled Linear Gravjet Layered Light Armor Plating High-powered Tractor Beam Transdimensional Reconstructor Peak State ------------ > --- POWER ------------ Backup Power VII > --- PROPULSION ------- Biometal Heavy Treads Xenon Bombardment Thruster Xenon Bombardment Thruster > --- UTILITY ---------- Advanced Targeting Computer System Shield System Shield System Shield > --- WEAPON ----------- Backup Laser VII Backup Laser VII > --- INVENTORY -------- Quantum Reactor Cooled Linear Gravjet Layered Light Armor Plating High-powered Tractor Beam Transdimensional Reconstructor [Rating: 63] Favorites ----------- Power Improved Ion Engine Engine Improved Ion Engine Power Core Fission Core Reactor Quantum Reactor Propulsion Light Treads Treads Light Treads Leg Carbon-fiber Leg Wheel Wheel Hover Unit Gravmag Array Flight Unit Improved Flight Unit Utility Huge Storage Unit Device Seismic Detector Storage Huge Storage Unit Processor Enhanced Optical Array Hackware Hacking Suite Protection Improved Light Armor Plating Weapon Light Assault Rifle Energy Gun Cooled Pulse Rifle Ballistic Gun Light Assault Rifle Launcher Grenade Launcher Slashing Weapon Katana Build | -11 -10 -10 -9 -9 -8 -7 -7 -6 -6 -6 -6 -6 -5 -4 -4 -3 -3 -2 -1 ------- Run | Yrd Mat Min Mat Min Mat Fac DSF Fac Ext Cet Arc Hub Fac Fac DSF Res Qua Res Acc Slots Evolved 18 | . . . 2 . 2 2 . 2 . . . . 2 2 . 2 . 2 2 Power 1 | . . . . . . . . . . . . . . 1 . . . . . Propulsion 4 | . . . 1 . 1 . . 1 . . . . . 1 . . . . . Utility 13 | . . . 1 . 1 2 . 1 . . . . 2 . . 2 . 2 2 Weapon . | . . . . . . . . . . . . . . . . . . . . Parts Attached 123 | 7 11 4 14 1 24 2 1 8 13 4 1 6 3 1 3 . 5 2 13 Power 15 | 1 2 1 1 . 3 . . 1 3 1 . 1 . . . . . . 1 Engine 10 | 1 2 1 1 . 1 . . 1 1 1 . 1 . . . . . . . Core 4 | . . . . . 2 . . . 2 . . . . . . . . . . Reactor 1 | . . . . . . . . . . . . . . . . . . . 1 Propulsion 40 | 2 5 1 4 . 10 . . 1 . 1 1 2 1 . 3 . 2 . 7 Treads 15 | . 2 1 4 . 5 . . . . . . . . . . . . . 3 Leg 5 | 2 . . . . . . . . . 1 1 . . . . . . . 1 Wheel 3 | . 3 . . . . . . . . . . . . . . . . . . Hover 5 | . . . . . . . . . . . . . 1 . 3 . . . 1 Flight 12 | . . . . . 5 . . 1 . . . 2 . . . . 2 . 2 Utility 46 | 2 2 . 3 1 7 2 1 5 9 2 . 1 2 1 . . 2 1 5 Device 12 | 1 . . . . 2 . . 2 3 . . . 1 . . . . . 3 Storage 4 | 1 2 . . . . . . . 1 . . . . . . . . . . Processor 6 | . . . . . . 1 . 2 1 1 . . . . . . 1 . . Hackware 9 | . . . . . 2 . . 1 1 . . . . 1 . . 1 1 2 Protection 15 | . . . 3 1 3 1 1 . 3 1 . 1 1 . . . . . . Artifact . | . . . . . . . . . . . . . . . . . . . . Weapon 22 | 2 2 2 6 . 4 . . 1 1 . . 2 . . . . 1 1 . Energy Gun 4 | 1 . . 1 . . . . . 1 . . . . . . . 1 . . Energy Cannon . | . . . . . . . . . . . . . . . . . . . . Ballistic Gun 12 | 1 2 2 3 . 2 . . . . . . 2 . . . . . . . Ballistic Cannon . | . . . . . . . . . . . . . . . . . . . . Launcher 4 | . . . 1 . 2 . . 1 . . . . . . . . . . . Special Weapon . | . . . . . . . . . . . . . . . . . . . . Impact Weapon . | . . . . . . . . . . . . . . . . . . . . Slashing Weapon 2 | . . . 1 . . . . . . . . . . . . . . 1 . Piercing Weapon . | . . . . . . . . . . . . . . . . . . . . Special Melee Weapon . | . . . . . . . . . . . . . . . . . . . . Unidentified Prototypes 8 | . . . 2 . . . . 1 2 . . . . . . . 2 1 . Corrupted Parts 2 | . . . . . . . . . . . . 2 . . . . . . . System Corruption 12 | . . . . . . . . . . . . 12 . . . . . . . Parts Lost 72 | . . 3 . . 23 . 2 . 3 5 . 5 9 . 4 2 5 . 11 Power 9 | . . 1 . . 4 . 1 . 1 1 . 1 . . . . . . . Propulsion 30 | . . 2 . . 9 . 1 . 1 1 . 2 4 . 2 1 2 . 5 Utility 23 | . . . . . 5 . . . 1 2 . 1 4 . 2 1 2 . 5 Weapon 10 | . . . . . 5 . . . . 1 . 1 1 . . . 1 . 1 Highest Loss Streak 11 | . . 2 . . 11 . 2 . 2 5 . 4 9 . 4 2 2 . 7 To Critical Strikes 2 | . . . . . . . . . . 1 . . . . . . 1 . . Average Backups 14 | 2 11 18 21 24 20 3 3 4 4 4 5 4 3 3 4 5 4 3 4 Power 1 | . 1 1 1 1 1 . . . . . 1 1 1 1 1 1 . . . Propulsion 5 | 1 4 7 8 11 7 1 1 . . . . . . . . . . . 1 Utility 5 | . 4 5 6 8 8 1 2 3 4 3 3 2 1 1 2 3 2 1 1 Weapon 2 | . 1 4 5 4 3 1 . . . 1 1 1 1 1 1 1 . 1 . Tool/Special . | . . . . . . . . . . . . . . . . . . . . Unused Backups 28 | . . . 11 . 7 . . 1 2 . . . . . 3 . 1 . 3 Power 4 | . . . 1 . 3 . . . . . . . . . . . . . . Propulsion 6 | . . . 4 . . . . 1 . . . . . . . . . . 1 Utility 13 | . . . 3 . 3 . . . 2 . . . . . 3 . 1 . 1 Weapon 4 | . . . 3 . 1 . . . . . . . . . . . . . . Tool/Special 1 | . . . . . . . . . . . . . . . . . . . 1 Average Slot Usage (%) 86 | . 97 96 99 100 88 82 82 77 87 74 74 81 48 34 38 15 18 8 20 Engine 8 | . 14 12 11 11 5 7 5 4 3 2 . 1 . . . . . . . Treads 15 | . 2 11 33 33 31 . . . . . . . . . . . . . 2 Leg 1 | . 4 . . . . . . . . 3 7 11 2 . . . . . 1 Wheel 3 | . 18 15 . . . . . . . . . . . . . . . . . Flight 5 | . . . . . 3 30 28 20 23 13 13 17 7 . . . 2 . 1 Device 8 | . 14 14 11 11 8 . . 8 6 . . . 1 . . . . . . Storage 7 | . 14 14 11 11 8 . . . . . . . . . . . . . . Processor 3 | . . . . . . 7 7 9 13 19 20 20 13 10 9 4 6 4 2 Hackware 4 | . . . . . 1 15 15 13 18 20 20 20 13 13 14 6 5 4 10 Protection 6 | . . . 10 11 11 13 17 12 5 6 6 6 2 5 4 . . . . Energy Gun 1 | . 1 . . . . . . . 5 5 6 2 . . . . 1 . . Ballistic Gun 15 | . 26 28 21 22 14 . . . . . . 1 2 . . . . . . Slashing Weapon 1 | . . . . . . 7 7 6 6 . . . . . . . . . 1 Peak Build Rating 63 | 7 9 11 19 20 28 31 35 51 59 48 43 51 42 33 47 19 34 18 63 Average Rating 22 | 5 7 9 15 19 22 30 31 38 49 41 40 43 32 32 38 15 22 8 34 On Entrance 24 | . 7 9 11 18 20 26 31 28 46 48 40 43 41 30 33 19 9 8 18 Avg Prop Armor Cover (%) 15 | . . . . . . . . 2 4 4 11 15 18 . 10 5 . . 38 Naked Turns . | . . . . . . . . . . . . . . . . . . . . Heaviest Build 99 | 12 88 92 97 97 99 14 17 19 23 16 7 8 8 8 8 . 6 3 12 Greatest Support 145 | 20 40 40 60 60 83 20 20 21 21 15 10 16 20 20 24 3 16 3 145 Greatest Overweight (x) 8 | . 8 8 1 1 4 . 1 . 4 1 . 2 1 . 2 . 1 . . Average Overweight (x) . | . 3 3 1 1 . . . . . . . . . . . . . . . Largest Inventory Capacity 25 | 8 25 25 25 25 25 5 5 5 5 5 5 5 5 5 5 5 5 5 5 Average Capacity 18 | 7 22 25 25 25 23 5 5 5 5 5 5 5 5 5 5 5 5 5 5 Most Carried 25 | 4 18 21 25 25 24 4 5 5 5 5 5 5 4 4 5 5 5 5 5 Average Carried 14 | 2 11 18 21 24 20 3 4 4 4 4 5 4 3 3 4 5 4 3 4 Final Capacity 25 | 8 25 25 25 25 5 5 5 5 5 5 5 5 5 5 5 5 5 5 5 Final Carried 25 | 4 18 18 25 24 5 3 5 5 5 5 5 5 3 4 5 5 5 3 5 Class Distribution -------------------- 38% | Mutant 32% | Scavenger-Mutant 12% | Hacker-Mutant 4% | Commander-Scout 3% | Hacker-Scout 3% | Commander-Assassin Dominant Class ---------------- Scavenger-Mutant | -10/Materials Scavenger-Mutant | -10/Mines Mutant | -9/Materials Mutant | -9/Mines Scavenger-Mutant | -8/Materials Hacker-Sprinter | -7/Factory Hacker-Sprinter | -7/DSF Hacker-Mutant | -6/Factory Commander-Scout | -6/Extension Commander-Mutant | -6/Cetus Hacker-Mutant | -6/Archives Hacker-Mutant | -6/Hub_04(d) Hacker-Mutant | -5/Factory Hacker-Mutant | -4/Factory Hacker-Mutant | -4/DSF Hacker-Mutant | -3/Research Mutant | -3/Quarantine Mutant | -2/Research Hacker-Mutant | -1/Access Resources | -11 -10 -10 -9 -9 -8 -7 -7 -6 -6 -6 -6 -6 -5 -4 -4 -3 -3 -2 -1 ----------- Run | Yrd Mat Min Mat Min Mat Fac DSF Fac Ext Cet Arc Hub Fac Fac DSF Res Qua Res Acc Matter Collected 2636 | 266 223 55 641 70 525 . . 107 408 61 40 4 9 . . . . . 227 Remotely . | . . . . . . . . . . . . . . . . . . . . Salvage Created 4712 | 112 614 21 1247 183 1021 . . 203 648 21 40 399 . . . . . . 203 Parts 326 | 8 54 7 83 14 71 . . 16 32 . 2 30 . . . . . . 9 Haulers Intercepted 11 | . 2 . 5 . . . . 1 3 . . . . . . . . . . Recyclers Shooed 3 | 1 1 . . . 1 . . . . . . . . . . . . . . Parts Field Recycled . | . . . . . . . . . . . . . . . . . . . . Retrieved Matter . | . . . . . . . . . . . . . . . . . . . . Parts Self-Destructed . | . . . . . . . . . . . . . . . . . . . . Prevented . | . . . . . . . . . . . . . . . . . . . . Parts Restored . | . . . . . . . . . . . . . . . . . . . . Kills | -11 -10 -10 -9 -9 -8 -7 -7 -6 -6 -6 -6 -6 -5 -4 -4 -3 -3 -2 -1 ------- Run | Yrd Mat Min Mat Min Mat Fac DSF Fac Ext Cet Arc Hub Fac Fac DSF Res Qua Res Acc Combat Hostiles Destroyed 77 | . 13 2 18 5 24 . . . 3 3 . 6 . . . . . . 3 Melee 1 | . . . . . . . . . . . . . . . . . . . 1 Guns 63 | . 13 2 18 5 21 . . . 3 . . 1 . . . . . . . AOE 13 | . . . . . 3 . . . . 3 . 5 . . . . . . 2 Classes Destroyed 14 | 2 6 . 3 . 2 . . . 1 . . . . . . . . . . Worker 17 | . 2 . 2 . 4 . . 1 1 . . 6 . . . . . . 1 Builder 7 | . . . . . 2 . . . 1 . . 3 . . . . . . 1 Tunneler 6 | 2 1 . . 1 . . . 2 . . . . . . . . . . . Hauler 11 | . 2 . 5 . . . . 1 3 . . . . . . . . . . Recycler 5 | 1 . . 3 . . . . . . . . . . . . . . . 1 Operator 7 | . 1 . . . . . . 2 3 . . 1 . . . . . . . Watcher 14 | . 3 . 4 . 4 . . 1 1 1 . . . . . . . . . Swarmer 28 | . 6 2 6 2 5 . . . . . . 4 . . . . . . 3 Grunt 33 | . 7 . 6 3 16 . . . . 1 . . . . . . . . . Brawler 1 | . . . 1 . . . . . . . . . . . . . . . . Duelist 1 | . . . 1 . . . . . . . . . . . . . . . . Sentry 10 | . . . 4 . 2 . . . 2 . . 2 . . . . . . . Hunter 1 | . . . . . 1 . . . . . . . . . . . . . . Behemoth 1 | . . . . . . . . . 1 . . . . . . . . . . Cetus Guard 2 | . . . . . . . . . . 2 . . . . . . . . . Best Kill Streak 16 | 2 7 2 4 3 6 . . 2 2 3 . 16 . . . . . . 2 Combat Bots Only 6 | . 4 2 3 3 6 . . . 1 2 . 6 . . . . . . 2 Max Kills in Single Turn 15 | 1 2 1 2 2 3 . . 1 1 1 . 15 . . . . . . 2 Gunslinging 1 | . 1 . 1 1 . . . . . . . . . . . . . . . Exploded 5 | . . . . . 1 . . . . 1 . 5 . . . . . . 2 Melee 1 | . . . . . . . . . . . . . . . . . . . 1 Uniques/NPCs Destroyed . | . . . . . . . . . . . . . . . . . . . . Combat | -11 -10 -10 -9 -9 -8 -7 -7 -6 -6 -6 -6 -6 -5 -4 -4 -3 -3 -2 -1 -------- Run | Yrd Mat Min Mat Min Mat Fac DSF Fac Ext Cet Arc Hub Fac Fac DSF Res Qua Res Acc Hostile Shots Fired 1203 | . 38 30 74 18 309 . 6 10 110 35 . 70 62 . 14 33 122 2 270 Missed 475 | . 8 11 25 5 104 . 2 6 66 12 . 29 26 . 3 7 63 2 106 Hits 728 | . 30 19 49 13 205 . 4 4 44 23 . 41 36 . 11 26 59 . 164 Melee 7 | . . . 3 . . . . . . . . . . . 4 . . . . Projectile 721 | . 30 19 46 13 205 . 4 4 44 23 . 41 36 . 7 26 59 . 164 AOE 5 | . . 3 . . . . . . . . . . . . 2 . . . . Critical Strikes 32 | . . . 2 1 7 . . . 2 4 . . 4 . 4 1 4 . 3 Damage Taken 13543 | . 306 320 648 147 2755 . 192 36 569 581 . 724 897 . 595 612 1118 165 3878 Core 4784 | . 75 76 120 34 433 . 40 5 116 87 . 103 501 . 158 531 745 143 1617 Absorbed by Shields 186 | . . . . . . . . . 88 98 . . . . . . . . . Redirected to Shielding 33 | . . . 33 . . . . . . . . . . . . . . . . Core Remaining (%) 60 | 100 . 39 . 61 21 . 94 . . . . 63 49 . 86 . 1 90 . Volleys Fired 327 | 6 59 6 76 10 96 . . . 39 14 5 9 1 . . . 5 . 1 Largest 2 | 2 2 2 2 2 2 . . . 1 1 1 1 1 . . . 1 . 2 Hottest 100 | 70 70 40 46 46 53 . . . 60 45 20 30 28 . . . 94 . 100 Shots Fired 545 | 12 118 12 147 20 160 . . . 39 15 5 9 1 . . . 5 . 2 Gun 518 | 12 118 12 143 20 145 . . . 39 7 5 9 1 . . . 5 . 2 Cannon . | . . . . . . . . . . . . . . . . . . . . Launcher 27 | . . . 4 . 15 . . . . 8 . . . . . . . . . Special . | . . . . . . . . . . . . . . . . . . . . Kinetic 439 | 6 103 12 143 20 145 . . . . . . 9 1 . . . . . . Thermal 79 | 6 15 . . . . . . . 39 7 5 . . . . . 5 . 2 Explosive 27 | . . . 4 . 15 . . . . 8 . . . . . . . . . Electromagnetic . | . . . . . . . . . . . . . . . . . . . . Robot Hit Streak 23 | 6 13 4 8 8 14 . . . 23 11 9 2 1 . . . 2 . . Robot Miss Streak 8 | 1 4 3 8 1 6 . . . 1 2 1 1 5 . . . . . . Penetration Max 1 | . . . . . 1 . . . . . . . . . . . . . . Secondary Targets 11 | . 2 . 3 1 5 . . . . . . . . . . . . . . Max Gunslinging Chain 1 | . 1 . 1 1 1 . . . . . . . . . . . . . . Shots Hit Robots 419 | 7 77 7 91 16 125 . . 13 56 13 4 4 1 . . . 2 . 3 Core Hits 336 | 4 43 3 49 7 76 . . 7 18 83 3 39 . . . . 1 . 3 Critical Kills 3 | . 1 . 2 . . . . . . . . . . . . . . . . Critical Parts Destroyed . | . . . . . . . . . . . . . . . . . . . . Critical Strikes 11 | 1 3 . 2 . . . . . 5 . . . . . . . . . . Burn 4 | 1 2 . . . . . . . 1 . . . . . . . . . . Destroy 3 | . 1 . 2 . . . . . . . . . . . . . . . . Sever 4 | . . . . . . . . . 4 . . . . . . . . . . Melee Attacks 64 | . . . 2 . 3 . . 23 31 . . . . . . . . . 5 Impact . | . . . . . . . . . . . . . . . . . . . . Slashing 64 | . . . 2 . 3 . . 23 31 . . . . . . . . . 5 Piercing . | . . . . . . . . . . . . . . . . . . . . Sneak Attacks 14 | . . . . . 1 . . 5 5 . . . . . . . . . 3 Combat Hostiles . | . . . . . . . . . . . . . . . . . . . . Follow-up Attacks . | . . . . . . . . . . . . . . . . . . . . Damage Inflicted 12487 | 85 704 65 1464 260 2760 . . 720 1799 1583 75 2008 5 . . 27 60 82 790 Guns 5434 | 85 695 62 1289 245 1887 . . . 848 96 75 87 5 . . . 60 . . Cannons . | . . . . . . . . . . . . . . . . . . . . Explosions 4778 | . . . 139 . 794 . . . . 1487 . 1921 . . . . . . 437 Melee 2077 | . . . . . 75 . . 720 951 . . . . . . . . . 331 Ramming 198 | . 9 3 36 15 4 . . . . . . . . . . 27 . 82 22 Kinetic 4178 | 22 581 62 1289 245 1887 . . . . . . 87 5 . . . . . . Thermal 1256 | 63 114 . . . . . . . 848 96 75 . . . . . 60 . . Explosive 2857 | . . . 139 . 794 . . . . 1487 . . . . . . . . 437 Electromagnetic 1921 | . . . . . . . . . . . . 1921 . . . . . . . Impact . | . . . . . . . . . . . . . . . . . . . . Slashing 2077 | . . . . . 75 . . 720 951 . . . . . . . . . 331 Piercing . | . . . . . . . . . . . . . . . . . . . . Highest Corruption 16 | . . . . . 2 . . . 1 2 2 16 . . 2 . 8 . 6 Average Corruption 2 | . . . . . 2 . . . 1 1 2 4 . . 2 . 3 . 4 Corruption Purged . | . . . . . . . . . . . . . . . . . . . . Corruption Blocked . | . . . . . . . . . . . . . . . . . . . . Effects 12 | . . . . . . . . . 1 3 1 2 . . . . 3 . 2 Message Errors 6 | . . . . . . . . . . 1 1 2 . . . . 1 . 1 Matter Fused 2 | . . . . . . . . . 1 . . . . . . . 1 . . Energy Discharges 2 | . . . . . . . . . . 1 . . . . . . . . 1 Data Loss (minor) 1 | . . . . . . . . . . . . . . . . . 1 . . Misfires 1 | . . . . . . . . . . 1 . . . . . . . . . Overload Shots 8 | . . . . . . . . . 8 . . . . . . . . . . Effects 1 | . . . . . . . . . 1 . . . . . . . . . . Heat Surge 1 | . . . . . . . . . 1 . . . . . . . . . . Overflow Damage 605 | . . . . . 26 . . 143 147 . . 85 . . . . . . 204 Projectiles . | . . . . . . . . . . . . . . . . . . . . Explosions 162 | . . . . . 8 . . . . . . 85 . . . . . . 69 Melee 443 | . . . . . 18 . . 143 147 . . . . . . . . . 135 Knockbacks 4 | . . . . . . . . . . . . . . . . . . 4 . Impact 4 | . . . . . . . . . . . . . . . . . . 4 . Kinetic . | . . . . . . . . . . . . . . . . . . . . Secondary . | . . . . . . . . . . . . . . . . . . . . Self-Inflicted Damage 443 | . 4 . . . . . . . . 95 . 162 . . . 11 . 35 136 Shots 7 | . . . . . . . . . . 4 . 2 . . . . . . 1 Rammed 61 | . 1 1 6 2 2 . . . . . . . . . . 7 1 25 16 Targets Rammed 62 | . 1 1 6 2 2 . . . . . . . . . . 7 1 25 17 Kicked . | . . . . . . . . . . . . . . . . . . . . Crushed 1 | . . . . . . . . . . . . . . . . . . . 1 Highest Temperature 143 | 80 112 . 23 27 58 . . . 143 12 . 10 . . . . . . . Average Temperature 25 | 30 35 . 7 15 18 . . . 45 8 . 3 . . . . . . . Received Heat Transfer 2276 | . 114 69 207 69 1206 . . 9 156 53 . 30 90 . . 18 21 . 234 Siege Activations . | . . . . . . . . . . . . . . . . . . . . Martial Activations . | . . . . . . . . . . . . . . . . . . . . Shielding Activations . | . . . . . . . . . . . . . . . . . . . . Robots Disrupted . | . . . . . . . . . . . . . . . . . . . . Combat Hostiles . | . . . . . . . . . . . . . . . . . . . . Robots Corrupted . | . . . . . . . . . . . . . . . . . . . . Combat Hostiles . | . . . . . . . . . . . . . . . . . . . . Parts Fried 5 | . . . . . . . . . . . . 5 . . . . . . . Impact Corruptions . | . . . . . . . . . . . . . . . . . . . . Robots Melted . | . . . . . . . . . . . . . . . . . . . . Combat Hostiles . | . . . . . . . . . . . . . . . . . . . . Parts Melted . | . . . . . . . . . . . . . . . . . . . . Heat Transferred 2620 | 259 481 . . . . . . . 1473 185 148 . . . . . 74 . . Parts Sabotaged . | . . . . . . . . . . . . . . . . . . . . Parts Stolen . | . . . . . . . . . . . . . . . . . . . . Parts Stripped . | . . . . . . . . . . . . . . . . . . . . Power Chain Reactions . | . . . . . . . . . . . . . . . . . . . . Alert | -11 -10 -10 -9 -9 -8 -7 -7 -6 -6 -6 -6 -6 -5 -4 -4 -3 -3 -2 -1 ------- Run | Yrd Mat Min Mat Min Mat Fac DSF Fac Ext Cet Arc Hub Fac Fac DSF Res Qua Res Acc Maximum Alert Level 3 | . . . 1 . 1 . . . 2 2 2 3 2 . . . . . . Low Security (%) 81 | 100 100 100 73 100 60 100 100 100 54 . 48 81 87 100 100 100 100 100 100 Level 1 10 | . . . 26 . 39 . . . 7 8 22 . . . . . . . . Level 2 6 | . . . . . . . . . 38 91 29 . 12 . . . . . . Level 3 . | . . . . . . . . . . . . 18 . . . . . . . Level 4 . | . . . . . . . . . . . . . . . . . . . . Level 5 . | . . . . . . . . . . . . . . . . . . . . High Security . | . . . . . . . . . . . . . . . . . . . . Max Security . | . . . . . . . . . . . . . . . . . . . . Peak Influence 902 | 10 107 92 271 99 354 161 108 61 631 548 448 902 441 41 29 90 155 97 176 Initial 441 | . . 10 . 99 . 161 108 46 11 319 172 154 441 41 14 . 45 87 45 Average 104 | 1 30 19 107 19 148 158 101 15 290 482 268 169 75 34 17 18 85 85 119 Influence Increases 6463 | 15 401 150 614 115 840 4 . 100 1488 411 298 972 144 . 15 105 300 30 461 Destroy 0b10 Robot/C 2520 | . 260 120 360 100 480 . . . 660 160 140 120 . . . . . . 120 Destroy 0b10 Robot/NC 365 | 15 45 5 70 5 50 . . 35 60 5 10 50 . . . . . . 15 Destroy Leader 456 | . 70 20 108 10 98 . . 4 86 10 . 30 . . . . . . 20 Allied During Kill 848 | . . 5 . . . . . . 556 137 120 . . . . . . . 30 Successful Hack 247 | . 26 . 11 . . 4 . 12 27 16 . 10 24 . . . 90 . 27 Disable Machine 510 | . . . 30 . 15 . . 15 . . 15 390 . . . . 15 . 30 Destroy Structure 437 | . . . 20 . 47 . . 4 24 83 13 192 . . . . . . 54 Partial Spotted 75 | . . . . . . . . . 45 . . . . . . 15 . . 15 Lose Combat Pursuer 1005 | . . . 15 . 150 . . 30 30 . . 180 120 . 15 90 195 30 150 Influence Decreases 6327 | 15 372 179 360 369 486 203 67 165 940 552 288 510 961 64 36 25 225 108 402 Entered New Map 1911 | . . 19 . 155 . 193 47 42 12 252 258 286 461 44 7 . 35 68 32 Time Decay 2515 | 15 372 160 353 214 266 10 . 123 412 110 30 49 46 20 . 15 140 40 140 Lost Part 535 | . . . . . 220 . 20 . 26 50 . 15 5 . 29 10 50 . 110 Lost Ally 600 | . . . . . . . . . 340 140 . . . . . . . . 120 Purge Threat 766 | . . . 7 . . . . . 150 . . 160 449 . . . . . . Squads Dispatched 37 | . 3 2 1 . 5 1 1 1 7 1 . 3 4 . 1 . 3 . 4 Investigation 11 | . 1 1 . . 1 . . . 4 1 . 1 . . . . . . 2 Extermination 4 | . . . . . . . . 1 . . . . 1 . . . 1 . 1 Reinforcement 17 | . 2 . 1 . 1 1 1 . 3 . . 2 2 . 1 . 2 . 1 Assault 1 | . . 1 . . . . . . . . . . . . . . . . . Garrison 4 | . . . . . 3 . . . . . . . 1 . . . . . . Intercept . | . . . . . . . . . . . . . . . . . . . . Searches Triggered . | . . . . . . . . . . . . . . . . . . . . Construction Impeded 3 | . . . . . 1 . . . 1 . . 1 . . . . . . . Haulers Reinforced . | . . . . . . . . . . . . . . . . . . . . Active Scanning Responses . | . . . . . . . . . . . . . . . . . . . . Cargo Convoy Interrupts . | . . . . . . . . . . . . . . . . . . . . Stealth | -11 -10 -10 -9 -9 -8 -7 -7 -6 -6 -6 -6 -6 -5 -4 -4 -3 -3 -2 -1 --------- Run | Yrd Mat Min Mat Min Mat Fac DSF Fac Ext Cet Arc Hub Fac Fac DSF Res Qua Res Acc Distress Signals 17 | . 1 . 1 . 5 . . . 2 2 . 1 . . . . 3 . 2 Communications Jammed . | . . . . . . . . . . . . . . . . . . . . Distress Signals . | . . . . . . . . . . . . . . . . . . . . Times Spotted 308 | . 25 9 29 5 52 1 1 7 42 9 19 18 12 1 4 11 27 2 34 Peak Tracking Total 19 | . 5 4 5 2 10 1 1 2 11 5 19 14 8 1 3 9 10 2 14 Tactical Retreats 32 | . . . 1 . 5 . . 2 3 . . 4 4 . 1 1 6 1 4 ECM-based Alert Blocks 2 | . . . . . . . . . 2 . . . . . . . . . . Traps | -11 -10 -10 -9 -9 -8 -7 -7 -6 -6 -6 -6 -6 -5 -4 -4 -3 -3 -2 -1 ------- Run | Yrd Mat Min Mat Min Mat Fac DSF Fac Ext Cet Arc Hub Fac Fac DSF Res Qua Res Acc Traps Triggered 6 | . 1 . . . 1 . . . . . . 1 . . . . 2 . 1 Indirectly 1 | . . . . . . . . . . . . 1 . . . . . . . Trap Hack Attempts . | . . . . . . . . . . . . . . . . . . . . Triggered . | . . . . . . . . . . . . . . . . . . . . Disarmed 2 | . . . . . . . . . 2 . . . . . . . . . . Reprogrammed . | . . . . . . . . . . . . . . . . . . . . Reused . | . . . . . . . . . . . . . . . . . . . . Traps Extracted . | . . . . . . . . . . . . . . . . . . . . Installed . | . . . . . . . . . . . . . . . . . . . . Triggered . | . . . . . . . . . . . . . . . . . . . . Machines | -11 -10 -10 -9 -9 -8 -7 -7 -6 -6 -6 -6 -6 -5 -4 -4 -3 -3 -2 -1 ---------- Run | Yrd Mat Min Mat Min Mat Fac DSF Fac Ext Cet Arc Hub Fac Fac DSF Res Qua Res Acc Machines Disabled 35 | . . . 2 . 1 . . 1 1 . 1 26 . . . . 1 . 2 Max in Single Turn 26 | . . . 1 . 1 . . 1 1 . 1 26 . . . . 1 . 1 Garrison Access 1 | . . . . . . . . . . . . 1 . . . . . . . Network Hub 2 | . . . . . . . . . . . . 2 . . . . . . . Machines Repaired . | . . . . . . . . . . . . . . . . . . . . Machines Dismantled . | . . . . . . . . . . . . . . . . . . . . Machines Sabotaged . | . . . . . . . . . . . . . . . . . . . . Overloaded Fab Kills . | . . . . . . . . . . . . . . . . . . . . Hacking | -11 -10 -10 -9 -9 -8 -7 -7 -6 -6 -6 -6 -6 -5 -4 -4 -3 -3 -2 -1 --------- Run | Yrd Mat Min Mat Min Mat Fac DSF Fac Ext Cet Arc Hub Fac Fac DSF Res Qua Res Acc Machines Accessed 59 | . 6 1 8 . 3 1 . 6 13 2 1 5 2 1 . 1 7 . 2 Terminals 46 | . 6 . 6 . . 1 . 4 13 2 . 4 1 1 . 1 7 . . Fabricators . | . . . . . . . . . . . . . . . . . . . . Repair Stations 3 | . . . . . 1 . . . . . . . . . . . . . 2 Recycling Units 2 | . . . . . . . . 1 . . . . 1 . . . . . . Scanalyzers 3 | . . . 2 . 1 . . . . . . . . . . . . . . Garrison Access 3 | . . . . . 1 . . 1 . . . 1 . . . . . . . Total Hacks 202 | . 15 1 35 . 8 1 . 10 27 7 25 19 25 1 . 1 19 . 8 Successful 113 | . 4 1 19 . 4 1 . 6 10 5 25 14 14 1 . 1 7 . 1 Failed 88 | . 11 . 15 . 4 . . 4 17 2 . 5 11 . . . 12 . 7 Catastrophic 22 | . 1 . 4 . 2 . . 2 5 . . . 1 . . . 5 . 2 Database Lockouts 1 | . . . 1 . . . . . . . . . . . . . . . . Manual 56 | . 14 . 6 . . . . . 1 3 3 14 7 . . . 8 . . Terminals 129 | . 15 . 17 . . 1 . 6 27 7 . 18 17 1 . 1 19 . . Fabricators . | . . . . . . . . . . . . . . . . . . . . Repair Stations 9 | . . . . . 1 . . . . . . . . . . . . . 8 Recycling Units 11 | . . . . . . . . 3 . . . . 8 . . . . . . Scanalyzers 23 | . . . 18 . 5 . . . . . . . . . . . . . . Garrison Access 4 | . . . . . 2 . . 1 . . . 1 . . . . . . . Terminal Hacks 88 | . 4 1 5 . . 1 . 5 10 5 25 13 10 1 . 1 7 . . Record 36 | . . . . . . . . . . 4 25 3 1 . . . 3 . . Robot Analysis 4 | . 3 . . . . . . 1 . . . . . . . . . . . Prototype ID Bank 3 | . 1 . 1 . . . . 1 . . . . . . . . . . . Open Door 12 | . . 1 . . . . . 1 7 1 . . . . . . 2 . . Open DSF 4 | . . . . . . 1 . 1 . . . . . 1 . 1 . . . Level Access Points 2 | . . . . . . . . . . . . 1 1 . . . . . . Branch Access Points 3 | . . . . . . . . . 1 . . 1 1 . . . . . . Emergency Access Points 1 | . . . . . . . . . . . . 1 . . . . . . . Terminal Index 2 | . . . . . . . . . . . . 1 1 . . . . . . Unreport Threat 7 | . . . 1 . . . . . 1 . . 2 3 . . . . . . Locate Traps 7 | . . . 2 . . . . 1 . . . 2 1 . . . 1 . . Disarm Traps 1 | . . . . . . . . . 1 . . . . . . . . . . Patrol Status 1 | . . . 1 . . . . . . . . . . . . . . . . Recall Investigation 1 | . . . . . . . . . . . . . . . . . 1 . . Recall Reinforcements 1 | . . . . . . . . . . . . 1 . . . . . . . Registered Components 1 | . . . . . . . . . . . . . 1 . . . . . . Zone Layout 2 | . . . . . . . . . . . . 1 1 . . . . . . Fabricator Hacks . | . . . . . . . . . . . . . . . . . . . . Repair Station Hacks 2 | . . . . . 1 . . . . . . . . . . . . . 1 Refit 2 | . . . . . 1 . . . . . . . . . . . . . 1 Recycling Unit Hacks 5 | . . . . . . . . 1 . . . . 4 . . . . . . Recycle Component 1 | . . . . . . . . . . . . . 1 . . . . . . Process 1 | . . . . . . . . . . . . . 1 . . . . . . Retrieve Matter 2 | . . . . . . . . 1 . . . . 1 . . . . . . Retrieve Components 1 | . . . . . . . . . . . . . 1 . . . . . . Scanalyzer 17 | . . . 14 . 3 . . . . . . . . . . . . . . Insert Component 8 | . . . 7 . 1 . . . . . . . . . . . . . . Analyze 7 | . . . 6 . 1 . . . . . . . . . . . . . . Retrieve Study 2 | . . . 1 . 1 . . . . . . . . . . . . . . Garrison Access Hacks 1 | . . . . . . . . . . . . 1 . . . . . . . Seal Access 1 | . . . . . . . . . . . . 1 . . . . . . . Unauthorized Hacks . | . . . . . . . . . . . . . . . . . . . . Terminals . | . . . . . . . . . . . . . . . . . . . . Fabricators . | . . . . . . . . . . . . . . . . . . . . Repair Stations . | . . . . . . . . . . . . . . . . . . . . Recycling Units . | . . . . . . . . . . . . . . . . . . . . Scanalyzers . | . . . . . . . . . . . . . . . . . . . . Garrison Access . | . . . . . . . . . . . . . . . . . . . . Data Cores Recovered 2 | . . . . . . . . 1 1 . . . . . . . . . . Used . | . . . . . . . . . . . . . . . . . . . . Hacking Detections 45 | . 6 . 8 . 3 1 . 3 10 2 . 4 2 . . . 4 . 2 Full Trace Events 7 | . 1 . . . 1 . . . 3 1 . . . . . . . . 1 Feedback Events 2 | . . . . . . . . . 1 1 . . . . . . . . . Corruption 2 | . . . . . . . . . 1 1 . . . . . . . . . Feedback Blocked . | . . . . . . . . . . . . . . . . . . . . Robot Schematics Acquired . | . . . . . . . . . . . . . . . . . . . . Robots Built . | . . . . . . . . . . . . . . . . . . . . Authchips . | . . . . . . . . . . . . . . . . . . . . Time . | . . . . . . . . . . . . . . . . . . . . Total Robot Build Rating . | . . . . . . . . . . . . . . . . . . . . Part Schematics Acquired 7 | . . . 6 . 1 . . . . . . . . . . . . . . Parts Built . | . . . . . . . . . . . . . . . . . . . . Authchips . | . . . . . . . . . . . . . . . . . . . . Time . | . . . . . . . . . . . . . . . . . . . . Total Part Build Rating . | . . . . . . . . . . . . . . . . . . . . Part Studies Acquired 2 | . . . 1 . 1 . . . . . . . . . . . . . . Parts Repaired . | . . . . . . . . . . . . . . . . . . . . Time . | . . . . . . . . . . . . . . . . . . . . Parts Recycled 1 | . . . . . . . . . . . . . 1 . . . . . . Recycled Matter . | . . . . . . . . . . . . . . . . . . . . Retrieved Matter . | . . . . . . . . . . . . . . . . . . . . Retrieved Components 3 | . . . . . . . . . . . . . 3 . . . . . . Parts Scanalyzed 7 | . . . 6 . 1 . . . . . . . . . . . . . . Part Schematics Acquired 7 | . . . 6 . 1 . . . . . . . . . . . . . . Parts Damaged . | . . . . . . . . . . . . . . . . . . . . Bothacking | -11 -10 -10 -9 -9 -8 -7 -7 -6 -6 -6 -6 -6 -5 -4 -4 -3 -3 -2 -1 ------------ Run | Yrd Mat Min Mat Min Mat Fac DSF Fac Ext Cet Arc Hub Fac Fac DSF Res Qua Res Acc Used RIF Installer . | . . . . . . . . . . . . . . . . . . . . Robots Hacked . | . . . . . . . . . . . . . . . . . . . . Non-combat . | . . . . . . . . . . . . . . . . . . . . Combat . | . . . . . . . . . . . . . . . . . . . . Robot Hacks Applied . | . . . . . . . . . . . . . . . . . . . . Relay Couplers Released . | . . . . . . . . . . . . . . . . . . . . Fabnet Peak Effective % . | . . . . . . . . . . . . . . . . . . . . Robots Rewired 19 | . . . . . . . . . 19 . . . . . . . . . . Allies Hacked . | . . . . . . . . . . . . . . . . . . . . Hacks Repelled . | . . . . . . . . . . . . . . . . . . . . Allies | -11 -10 -10 -9 -9 -8 -7 -7 -6 -6 -6 -6 -6 -5 -4 -4 -3 -3 -2 -1 -------- Run | Yrd Mat Min Mat Min Mat Fac DSF Fac Ext Cet Arc Hub Fac Fac DSF Res Qua Res Acc Total Allies 39 | . . 1 . . . . . . 27 5 . . . . . . . . 6 Largest Group 16 | . . 1 1 . . . . . 16 12 4 . . . . . . . 3 Highest-Rated Group 613 | . . 31 31 . . . . . 561 613 314 . . . . . . . 42 Highest-Rated Ally 159 | . . 31 31 . . . . . 159 159 96 . . . . . . . 15 Total Orders . | . . . . . . . . . . . . . . . . . . . . Ally Attacks 303 | . . 14 . . . . . . 195 30 47 . . . . . . . 17 Total Damage 7117 | . . 228 . . . . . . 4520 653 1307 . . . . . . . 409 Kills 54 | . . 5 . . . . . . 33 6 7 . . . . . . . 3 Allies Corrupted . | . . . . . . . . . . . . . . . . . . . . Allies Melted . | . . . . . . . . . . . . . . . . . . . . Intel | -11 -10 -10 -9 -9 -8 -7 -7 -6 -6 -6 -6 -6 -5 -4 -4 -3 -3 -2 -1 ------- Run | Yrd Mat Min Mat Min Mat Fac DSF Fac Ext Cet Arc Hub Fac Fac DSF Res Qua Res Acc Active Infowar (turns) 8620 | 31 1311 856 2246 1191 455 . . 440 1024 239 72 173 156 44 86 66 204 . 26 Optics 2267 | . . . . . . . . 203 1024 239 72 173 156 44 86 66 204 . . Sensors 1501 | . . . . . . . . 440 1024 11 . . . . . . . . 26 Structural 50 | . . . . . 1 . . . . . . . 49 . . . . . . Traps 433 | . . . . . 433 . . . . . . . . . . . . . . Seismic 5942 | 31 1311 856 2246 1191 306 . . 1 . . . . . . . . . . . ECM 37 | . . . . . . . . . 37 . . . . . . . . . . Robot Analysis Total 4 | . 3 . . . . . . 1 . . . . . . . . . . . Derelict Logs Recovered 2 | . . 1 . 1 . . . . . . . . . . . . . . . Drone Launches . | . . . . . . . . . . . . . . . . . . . . Drone Recoveries . | . . . . . . . . . . . . . . . . . . . . Exploration | -11 -10 -10 -9 -9 -8 -7 -7 -6 -6 -6 -6 -6 -5 -4 -4 -3 -3 -2 -1 ------------- Run | Yrd Mat Min Mat Min Mat Fac DSF Fac Ext Cet Arc Hub Fac Fac DSF Res Qua Res Acc Turns Passed 9524 | 93 1311 856 2246 1191 808 24 38 440 1024 239 72 173 156 44 86 66 293 84 280 Spaces Moved 7045 | 56 695 437 794 481 337 71 66 740 1157 175 121 237 309 69 85 105 580 110 420 Core 914 | 7 . . . . . . . . 87 . . 25 83 . 28 105 122 110 347 Treads 1598 | . 33 105 794 481 182 . . . . . . . . . . . . . 3 Legs 200 | 49 109 . . . . . . . . 42 . . . . . . . . . Wheels 885 | . 553 332 . . . . . . . . . . . . . . . . . Hover 176 | . . . . . . . . . . . . . 50 69 57 . . . . Flight 3272 | . . . . . 155 71 66 740 1070 133 121 212 176 . . . 458 . 70 Fastest Speed 31 | 50 120 140 240 240 31 31 31 31 31 34 47 42 40 60 56 50 40 50 37 Average Speed 107 | 111 152 187 240 240 144 31 36 34 48 74 49 61 48 60 88 50 45 50 51 Slowest Speed 320 | 120 320 320 240 240 311 31 104 37 250 190 57 150 120 60 150 50 100 50 180 Overloaded Moves . | . . . . . . . . . . . . . . . . . . . . Propulsion Burnouts . | . . . . . . . . . . . . . . . . . . . . Robots Hopped 79 | . . . . . 8 1 1 6 35 . 2 7 4 . . . 11 . 4 Potential Cave-ins 28 | . . . . . . . . . . . . . . . . . 28 . . Cave-ins Triggered 1 | . . . . . . . . . . . . . . . . . 1 . . Exploration Rate (%) 48 | 4 97 80 51 92 46 3 75 17 90 83 93 49 12 2 87 6 71 3 12 Regions Visited 19 Branch Regions 7 Pre-discovered Areas 1 | . . . . 1 . . . . . . . . . . . . . . . Known Exits Taken 9 | . . . . . 1 1 . 1 1 1 1 1 1 1 . . . . . Unknown Exits Taken 8 | 1 1 1 1 1 . . . . . . . . . . . 1 1 1 . Scrap Searched 1 | . . . . 1 . . . . . . . . . . . . . . . Spaces Dug 11 | . . . 1 . 2 . . 4 3 . . . . . . . . . 1 Terrain Destroyed 550 | . . . 19 . 46 . . 4 3 165 . 288 . . . . . . 25 Melee 11 | . . . 1 . 2 . . 4 3 . . . . . . . . . 1 Projectile . | . . . . . . . . . . . . . . . . . . . . AOE 539 | . . . 18 . 44 . . . . 165 . 288 . . . . . . 24 Terrain Rammed . | . . . . . . . . . . . . . . . . . . . . Walls Destroyed . | . . . . . . . . . . . . . . . . . . . . Machines Disabled . | . . . . . . . . . . . . . . . . . . . . Actions | -11 -10 -10 -9 -9 -8 -7 -7 -6 -6 -6 -6 -6 -5 -4 -4 -3 -3 -2 -1 --------- Run | Yrd Mat Min Mat Min Mat Fac DSF Fac Ext Cet Arc Hub Fac Fac DSF Res Qua Res Acc Total 8282 | 72 849 463 984 496 476 71 78 882 1498 260 125 247 309 70 97 118 591 138 458 Wait 493 | . 61 6 38 2 9 . 8 112 185 63 . . 1 . 1 7 . . . Move 6880 | 55 694 436 793 480 321 68 63 727 1095 174 116 222 301 68 84 105 557 109 412 Hop 67 | . . . . . 7 1 1 6 26 . 2 7 3 . . . 10 . 4 Pick Up 71 | 4 13 5 24 . 6 . 3 2 3 . . . . 1 4 . 4 2 . Fast Attach 74 | 7 3 . 5 . 7 . 1 6 11 3 1 5 2 1 3 . 6 . 13 Attach 35 | . . 3 2 . 17 2 . 1 1 2 . 2 1 . . . 2 2 . Detach 12 | . 3 . . . 1 . . . 2 2 . 2 . . . . . . 2 Swap 39 | . 8 2 14 1 5 . . 1 6 2 . . . . . . . . . Drop 67 | . 7 4 24 1 2 . 2 4 12 . . . . . 3 . 4 . 4 Fire 327 | 6 59 6 76 10 96 . . . 39 14 5 9 1 . . . 5 . 1 Melee 64 | . . . 2 . 3 . . 23 31 . . . . . . . . . 5 Ram 40 | . 1 . . . . . . . . . . . . . . 6 1 25 7 Kick . | . . . . . . . . . . . . . . . . . . . . Crush 21 | . . 1 6 2 2 . . . . . . . . . . . . . 10 Escape Stasis 1 | . . . . . . . . . . . . . . . . . 1 . . Rewire 91 | . . . . . . . . . 87 . 1 . . . 2 . 1 . . Trap . | . . . . . . . . . . . . . . . . . . . . Miscellaneous . | . . . . . . . . . . . . . . . . . . . . Route ------- -11/Scrapyard -10/Materials (discovered 5 exits: *Mat x3 / *Min x2) -10/Mines -9/Materials (discovered 2 exits: *Mat / [*Min]) -9/Mines (discovered 2 exits: *Mat x2) -8/Materials (discovered 2 exits: *Fac x2) -7/Factory (discovered 2 exits: Sto / DSF) -7/DSF -6/Factory -6/Extension (discovered 3 exits: *Fac x2 / *Cet) -6/Cetus -6/Archives (discovered 3 exits: *Fac / *Hub x2) -6/Hub_04(d) (discovered 4 exits: *Fac x4) -5/Factory (discovered 6 exits: *Fac x4 / Upp x2) -4/Factory -4/DSF -3/Research -3/Quarantine -2/Research -1/Access History --------- Turn | Location | Event 7 | -11/Scrapyard | Discovered new exit (range 15) 94 | -11/Scrapyard | Entered Materials 180 | -10/Materials | Discovered new exit (range 12) 313 | -10/Materials | Build established: Mutant 430 | -10/Materials | Discovered new exit (range 9) 876 | -10/Materials | Discovered new exit (range 15) 932 | -10/Materials | Build established: Scavenger-Mutant 1003 | -10/Materials | Discovered new exit (range 15) 1112 | -10/Materials | Discovered new exit (range 6) 1405 | -10/Materials | Entered Mines 1497 | -10/Mines | Assembled infested the area 1502 | -10/Mines | Assisted by a Guerilla fighting off Assembled 1725 | -10/Mines | Met a Derelict shopkeep closing up shop 1874 | -10/Mines | Met a Derelict testing a Signal Generator 1893 | -10/Mines | Joined a pair of Derelicts in attacking an 0b10 outpost 1919 | -10/Mines | Core integrity fell below 50% 1997 | -10/Mines | Received a Rocket Launcher from a helpful Derelict 2188 | -10/Mines | Discovered new exit (range 8) 2194 | -10/Mines | Found a hidden stash of uninstalled traps 2224 | -10/Mines | Build established: Mutant 2261 | -10/Mines | Entered Materials 2261 | -9/Materials | Accompanied by 1 ally 2261 | -9/Materials | Evolved 2 slots: Propulsion x1, Utility x1 2550 | -9/Materials | Central database locked down 3665 | -9/Materials | Discovered new exit (range 8) 3754 | -9/Materials | Discovered new exit (range 14) 4218 | -9/Materials | Build established: Scavenger-Mutant 4507 | -9/Materials | Entered Mines 4525 | -9/Mines | Met a Derelict bent on vengeance 4543 | -9/Mines | Discovered new exit (range 9) 4618 | -9/Mines | Learned 4 Materials zone layouts 5092 | -9/Mines | Build established: Mutant 5365 | -9/Mines | Discovered new exit (range 9) 5410 | -9/Mines | Deemed a non-threat by the Exiles lab entrance 5553 | -9/Mines | Learned location of Storage (-7) 5698 | -9/Mines | Entered Materials 5698 | -8/Materials | Evolved 2 slots: Propulsion x1, Utility x1 5699 | -8/Materials | Identified exit to Factory 5956 | -8/Materials | Garrison activated, responded to threat 5998 | -8/Materials | Build established: Scavenger-Mutant 6035 | -8/Materials | Lost 4 parts (2n1u1w) 6199 | -8/Materials | Lost 4 parts (1p2n1u) 6435 | -8/Materials | Core integrity fell below 50% 6501 | -8/Materials | Discovered exit to Factory (range 16) 6506 | -8/Materials | Lost 11 parts (2p5n1u3w) 6506 | -8/Materials | Entered Factory 6506 | -7/Factory | Evolved 2 slots: Utility x2 6507 | -7/Factory | Identified exit to Storage 6530 | -7/Factory | Identified exit to DSF 6530 | -7/Factory | Entered DSF 6559 | -7/DSF | Additional patrols routed to DSF 6564 | -7/DSF | Discovered new exit (range 14) 6568 | -7/DSF | Identified exit to Factory 6568 | -7/DSF | Entered Factory 6568 | -6/Factory | Evolved 2 slots: Propulsion x1, Utility x1 6785 | -6/Factory | Discovered new exit (range 6) 6786 | -6/Factory | Identified exit to Extension 6948 | -6/Factory | Found Prototype Launcher 6948 | -6/Factory | Identified Rocket Array 7008 | -6/Factory | Entered Extension 7044 | -6/Extension | Rescued a captive Derelict 7054 | -6/Extension | Rescued A7 7109 | -6/Extension | Identified exit to Cetus 7114 | -6/Extension | Rescued a captive Derelict 7116 | -6/Extension | Rescued a captive Derelict 7117 | -6/Extension | Rescued a captive Derelict 7119 | -6/Extension | Rescued a captive Derelict 7129 | -6/Extension | Spotted B-75 Beast 7205 | -6/Extension | Lost 3 allies 7281 | -6/Extension | Rescued a captive Derelict 7281 | -6/Extension | Rescued a captive Derelict 7408 | -6/Extension | Disrupted transfer network 7542 | -6/Extension | Spotted B-75 Beast 7548 | -6/Extension | Build established: Commander-Scout 7559 | -6/Extension | Destroyed B-75 Beast 7590 | -6/Extension | Allies destroyed B-75 Beast 7591 | -6/Extension | Discovered new exit (range 4) 7613 | -6/Extension | Lost 7 allies 7858 | -6/Extension | Rescued a captive Derelict 7972 | -6/Extension | Discovered new exit (range 10) 8022 | -6/Extension | Identified exit to Factory 8032 | -6/Extension | Entered Cetus 8032 | -6/Cetus | Accompanied by 10 allies (A7) 8036 | -6/Cetus | Spotted Cetus Guard 8036 | -6/Cetus | Spotted Cetus Guard 8036 | -6/Cetus | Spotted Cetus Guard 8036 | -6/Cetus | Spotted Cetus Guard 8037 | -6/Cetus | Acquired a Cetus Manufacturing Module code from A7 8048 | -6/Cetus | Destroyed Cetus Guard 8052 | -6/Cetus | Destroyed Cetus Guard 8053 | -6/Cetus | Allies destroyed Cetus Guard 8061 | -6/Cetus | Allies destroyed Cetus Guard 8084 | -6/Cetus | Started Cetus Manufacturing Module 8087 | -6/Cetus | Lost 5 parts (1p1n2u1w) 8094 | -6/Cetus | Extracted ID and sensor layout for unrecognized location from A7's data core 8109 | -6/Cetus | Manufactured an Enhanced Grunt 8118 | -6/Cetus | Discovered new exit (range 22) 8134 | -6/Cetus | Manufactured an Enhanced Grunt 8159 | -6/Cetus | Manufactured an Enhanced Grunt 8162 | -6/Cetus | Identified exit to Archives 8184 | -6/Cetus | Manufactured an Enhanced Grunt 8198 | -6/Cetus | Spotted Cetus Guard 8198 | -6/Cetus | Spotted Cetus Guard 8198 | -6/Cetus | Spotted Cetus Guard 8198 | -6/Cetus | Spotted Cetus Guard 8209 | -6/Cetus | Manufactured an Enhanced Grunt 8271 | -6/Cetus | Lost 6 allies 8271 | -6/Cetus | Entered Archives 8271 | -6/Archives | Accompanied by 4 allies 8280 | -6/Archives | Met Zhirov 8280 | -6/Archives | Discovered new exit (range 22) 8286 | -6/Archives | Reinforcements dispatched to Archives 8287 | -6/Archives | Discovered new exit (range 21) 8289 | -6/Archives | Read partially decrypted archive contents 8296 | -6/Archives | Identified exit to Hub_04(d) 8318 | -6/Archives | Unable to access archive contents 8318 | -6/Archives | Unable to access archive contents 8325 | -6/Archives | Unable to access archive contents 8329 | -6/Archives | Discovered exit to Factory (range 13) 8331 | -6/Archives | Reinforcements dispatched to Archives 8333 | -6/Archives | Zhirov warped through subspace 8343 | -6/Archives | Entered Hub_04(d) 8484 | -6/Hub_04(d) | Network Hub disabled 8484 | -6/Hub_04(d) | Network Hub disabled 8487 | -6/Hub_04(d) | Spotted B-75 Beast 8491 | -6/Hub_04(d) | System corruption reached 10% 8515 | -6/Hub_04(d) | Lost 4 parts (1p2n1u) 8516 | -6/Hub_04(d) | Entered Factory 8516 | -5/Factory | Evolved 2 slots: Utility x2 8523 | -5/Factory | Garrison activated, responded to threat 8536 | -5/Factory | Identified exit to Upper Caves 8536 | -5/Factory | Identified exit to Factory 8629 | -5/Factory | Lost 9 parts (4n4u1w) 8630 | -5/Factory | Spotted B-75 Beast 8633 | -5/Factory | Core integrity fell below 50% 8672 | -5/Factory | Entered another Factory area 8672 | -4/Factory | Evolved 2 slots: Power x1, Propulsion x1 8707 | -4/Factory | Identified exit to DSF 8716 | -4/Factory | Entered DSF 8754 | -4/DSF | Additional patrols routed to DSF 8782 | -4/DSF | Discovered new exit (range 20) 8802 | -4/DSF | Entered Research 8802 | -3/Research | Evolved 2 slots: Utility x2 8822 | -3/Research | Lost 4 parts (2n2u) 8865 | -3/Research | Discovered new exit (range 5) 8868 | -3/Research | Entered Quarantine 8869 | -3/Quarantine | Spotted Alpha 7 8962 | -3/Quarantine | Found Alien Artifact 8962 | -3/Quarantine | Identified Core Reset Matrix 8962 | -3/Quarantine | Used Core Reset Matrix 8966 | -3/Quarantine | Detected hypermatrix surge 8966 | -3/Quarantine | Sensed 14 artifacts in vicinity 8971 | -3/Quarantine | Found Terrabomb 8971 | -3/Quarantine | Used Terrabomb 8979 | -3/Quarantine | Found Terrabomb 8992 | -3/Quarantine | Core integrity fell below 50% 9003 | -3/Quarantine | Crushed by falling debris 9011 | -3/Quarantine | Used Terrabomb 9015 | -3/Quarantine | Found Transdimensional Reconstructor 9068 | -3/Quarantine | Met incapacitated Sigix Warrior 9068 | -3/Quarantine | Lockdown squad dispatched 9070 | -3/Quarantine | Acquired the access code to the Sigix quarantine chamber 9071 | -3/Quarantine | Unlocked Sigix quarantine chamber 9079 | -3/Quarantine | Core integrity fell below 20% 9156 | -3/Quarantine | Discovered new exit (range 13) 9161 | -3/Quarantine | Entered Research 9161 | -2/Research | Evolved 2 slots: Utility x2 9210 | -2/Research | Discovered new exit (range 16) 9245 | -2/Research | Entered Access 9245 | -1/Access | Evolved 2 slots: Utility x2 9393 | -1/Access | Core integrity fell below 50% 9416 | -1/Access | Emitted hypermatrix ping 9421 | -1/Access | Assembled emerged from beneath the floor 9462 | -1/Access | Lost 4 allies 9473 | -1/Access | Lost 7 parts (4n3u) 9497 | -1/Access | Core integrity fell below 20% 9525 | -1/Access | Destroyed by S-43 Plague with Heavy Machine Gun Last Messages --------------- (Destroy). 09492_ Adv. Reaction Control System destroyed. 09494_ Slammed into S-43 Plague. 09494_ Destabilizing: System corrupted (+1). 09497_ Penetrated by Slug. 09497_ Slug penetrates Wall. 09505_ Imp. Linear Gravjet destroyed. 09505_ Penetrated by Slug. 09513_ Slug penetrates G-73 Enforcer. 09513_ Penetrated by Slug. 09515_ Slug penetrates H-88 Terminator. 09515_ Penetrated by Slug. 09516_ &WJU|E0OQ LHXL7%1KIX5KXG8J 09520_ Slug penetrates Wall. 09522_ Connecting with Repair Station... 09522_ ALERT: Suspicious activity at Repair Station A004. Dispatching Investigation squad. 09522_ Slammed into S-43 Plague. 09523_ Penetrated by Slug. 09523_ Slug penetrates Wall. Map ----- +----------------------------------------------------+ | | | | | | | ?????????????????????????????????????????????????? | | ?????????????????????????????????????????????????? | | ?????????????????????????????????????????????????? | | ?????????????????????????????????????????????????? | | ?????????????????????????????????????????????????? | | ?????????????????????????????????????????????????? | | ?????????????????????????????????????????????????? | | ?????????????????????????????????????????????????? | | ??????????????###########????????????????????????? | | ??????????????# #????????????????????????? | | ??????????????# #???################+##### | | ??????????????# " #???# """S""" # + | | ??????????????# """ #???# """ """ # # | | ??????????????# """ #???# / # | | ?????########## " #???# = # # | | ###### #! ?????# # # | | " # #? ???????# = # # | | "" # #+##+##################/##### ###+ | | " # * # | | # + | | # # g g % | | # ! ### #######h########## ########### | | # #?# #??# @ #????# #?????????? | | # ### #### g #????# #?????????? | | ##/############ ## """ #???## ##????????? | | ## s""" #???# ########## | | ##sss R" #???#]![ | | ## ! """ #???# | | ##/############ ## "" #???# * | | * #?????###+####] #???# ###+###### | | * #?????? ?# #???####### ???? | | ! #?????# ##########?????????# ?? | | ! #?????# #??????????????????# | | #?????# #??????????????????# | | #?????# [ #??????????????????# | | #?????# #??????????????????# "" | | #?????########??????????????????# """" | | #######+#???????????????????????????????# """" | | ??????# #???????????????????????????????# """" | | ????### ###?????????????????????????????# ""?? | | ????# #?????????????????????????????# ????? | | ##### #?????????????????????????????# ?????? | | #?????????????????????????????# ??????? | | ##### #?????????????????????????????###??????? | | ????# #??????????????????????????????????????? | | ????###+###??????????????????????????????????????? | | ?????# ???????????????????????????????????????? | +----------------------------------------------------+ Best States ------------- Heat Dissipation 52 Energy Generation 18 Energy Capacity 310 Matter Stores 300 Matter Capacity 300 Sight Range 22 Robot Scan Range 16 Terrain Scan Density 10 ECM Strength 1 Armor Coverage 525 Core Shielding 20 Weapon Shielding 33 Evasion (%) 63 Targeting Accuracy 8 Melee Accuracy 5 Recoil Reduction 4 Offensive Hacking 30 Defensive Hacking 34 Item Schematics ----------------- None Robot Schematics ------------------ None Fabricated ------------ Nothing Repaired ---------- Nothing Studied --------- None Alien Tech Used ----------------- Core Reset Matrix Terrabomb Achievements -------------- Alien Roots False Reunion It Was An Accident, I Swear Maximum Efficiency Prison Break Project G-00 Quick And Dirty Universal Adapter Challenges ------------ None Game ------ Seed StasisShrapnelSplitter Manual? 0 Play Time 02:12:53 Cumulative 31.7 hours Start 2025.12.25 @ 11:49:51 End 2025.12.26 @ 00:12:46 Sessions 7 Manual Loads 0 Difficulty Rogue Special Mode None Game No. 27 Rogue 27 Adventurer 0 Explorer 0 Win Type - Total 3 Types 3/0/0/0/0/0/0/0/0/0 Lore% 33 Gallery% 29 Achievement% 30 Wizard Run 0 Options --------- Layout 1 ASCII 0 Keyboard 1 Movement Numpad Keybinds 0 Fullscreen 2 Font 24/Terminus Map View 50x35 Zoom Use 0% Tactical HUD 1 Map Filters NONE Filters NONE Steam 1 RUN: a335a4aa-d21d-45ab-9649-63d158d66fac